bitfinex-derivatives/quotes_BTCF0:USTF0_20250429
["timestamp","ask_amount","ask_price","bid_price","bid_amount"]
[1745907200002,0.1016,94509.0,94508.0,0.2956]
[1745907200802,0.1016,94509.0,94508.0,0.2946]
[1745907205504,0.1016,94509.0,94508.0,0.5061482]
[1745907205705,0.0313244,94518.0,94514.0,0.0528836]
[1745907205906,0.06464,94527.0,94526.0,0.2115079]
[1745907206207,0.03225992,94527.0,94526.0,0.3608]
[1745907206404,0.06464,94535.0,94530.0,0.2114977]
[1745907206706,0.06464,94535.0,94531.0,0.1014]
[1745907207007,0.0982,94534.0,94532.0,0.1004]
[1745907207207,0.1966,94534.0,94532.0,0.2006]
[1745907207394,0.1966,94534.0,94533.0,0.1071]
[1745907207815,0.1966,94534.0,94533.0,0.2073]
[1745907209121,0.1976,94534.0,94533.0,0.2073]
[1745907209702,0.40909,94534.0,94533.0,0.2073]
[1745907209904,0.41009,94534.0,94533.0,0.2073]
[1745907210701,0.1986,94534.0,94533.0,0.2073]
[1745907211209,0.41009,94534.0,94533.0,0.2073]
[1745907213919,0.1986,94534.0,94533.0,0.2073]
[1745907224920,1e-08,94535.0,94534.0,0.21149]
[1745907225111,0.1063,94547.0,94545.0,0.2114642]
[1745907225311,0.1063,94547.0,94546.0,0.5149632]
[1745907225516,0.16714,94554.0,94546.0,0.3035]
[1745907225709,0.1063,94553.0,94552.0,0.2114497]
[1745907225914,0.1063,94553.0,94552.0,0.5722497]
[1745907227111,0.1103,94553.0,94552.0,0.5722497]
[1745907227716,0.1143,94553.0,94552.0,0.5722497]
[1745907229217,0.2122,94553.0,94552.0,0.5722497]
[1745907235429,0.2122,94553.0,94552.0,0.2114497]
[1745907235619,0.2122,94553.0,94552.0,0.5722497]
[1745907236023,0.2122,94553.0,94552.0,0.2114497]
[1745907236229,0.2122,94553.0,94552.0,0.5722497]
[1745907239422,0.2122,94553.0,94552.0,0.2114497]
[1745907239627,0.2122,94553.0,94552.0,0.5722497]
[1745907240427,0.2122,94553.0,94552.0,0.6741497]
[1745907248121,0.2122,94553.0,94552.0,0.4627]
[1745907250930,0.2122,94553.0,94552.0,0.6741497]
[1745907254529,0.1143,94553.0,94552.0,0.6741497]
[1745907256441,0.008,94553.0,94552.0,0.6741497]
[1745907256630,0.008,94553.0,94552.0,0.69068027]
[1745907257027,0.008,94553.0,94552.0,0.69067937]
[1745907257737,0.004,94553.0,94552.0,1.10977937]
[1745907257928,0.008,94553.0,94552.0,1.10977937]
[1745907258332,0.1151,94553.0,94552.0,1.10977937]
[1745907259028,0.1151,94553.0,94552.0,1.10974954]
[1745907259342,0.1141,94553.0,94552.0,1.10974954]
[1745907261039,0.1141,94553.0,94552.0,0.74894954]
[1745907261232,0.1141,94553.0,94552.0,1.0932497]
[1745907263744,0.1141,94553.0,94552.0,1.10968624]
[1745907263944,0.1141,94553.0,94552.0,1.0932497]
[1745907269842,0.1141,94553.0,94552.0,0.7324497]
[1745907270243,0.1141,94553.0,94552.0,1.0932497]
[1745907271240,0.1141,94553.0,94552.0,1.10965725]
[1745907273958,0.1141,94553.0,94552.0,0.74885725]
[1745907274149,0.1141,94553.0,94552.0,1.10965725]
[1745907274451,0.1141,94553.0,94552.0,1.10965152]
[1745907275851,0.1141,94553.0,94552.0,1.0932497]
[1745907276254,0.1141,94553.0,94552.0,1.10950772]
[1745907277046,0.2214,94553.0,94552.0,1.10950772]
[1745907279645,0.2214,94553.0,94552.0,1.0932497]
[1745907281254,0.2214,94553.0,94552.0,1.10968071]
[1745907281556,0.2214,94553.0,94552.0,0.74888071]
[1745907281757,0.2214,94553.0,94552.0,1.10968071]
[1745907283160,0.2214,94553.0,94552.0,0.4191]
[1745907283161,0.5822,94553.0,94552.0,0.4191]
[1745907283361,0.6833,94553.0,94552.0,0.4191]
[1745907284948,0.6833,94553.0,94552.0,0.6305497]
[1745907287264,0.6833,94553.0,94552.0,0.2114497]
[1745907292055,0.6833,94553.0,94550.0,0.2114531]
[1745907292451,0.6833,94553.0,94551.0,0.2114519]
[1745907294263,0.6833,94553.0,94552.0,0.2114497]
[1745907294660,0.6823,94553.0,94552.0,0.2114497]
[1745907295358,0.6833,94553.0,94552.0,0.2114497]
[1745907295954,0.3225,94553.0,94552.0,0.2114497]
[1745907296463,0.3195,94553.0,94552.0,0.2114497]
[1745907296663,0.3225,94553.0,94552.0,0.2114497]
[1745907309464,0.3225,94553.0,94550.0,0.3721164]
[1745907309662,0.3225,94553.0,94550.0,0.3192529]
[1745907309861,0.3225,94553.0,94552.0,0.2114497]
[1745907310056,0.3225,94553.0,94550.0,0.1078]
[1745907310571,0.3185,94553.0,94550.0,0.1078]
[1745907310767,0.3215,94553.0,94550.0,0.1078]
[1745907311260,0.3215,94553.0,94550.0,0.208]
[1745907312256,0.3185,94553.0,94550.0,0.208]
[1745907312457,0.3215,94553.0,94550.0,0.208]
[1745907313460,0.5329478,94553.0,94550.0,0.208]
[1745907314659,0.3215,94553.0,94550.0,0.208]
[1745907314862,0.5329489,94553.0,94550.0,0.208]
[1745907317773,0.2204,94553.0,94550.0,0.208]
[1745907318472,0.4318477,94553.0,94550.0,0.208]
[1745907321370,0.2204,94553.0,94550.0,0.208]
[1745907324779,0.4318479,94553.0,94550.0,0.208]
[1745907325376,0.2204,94553.0,94550.0,0.208]
[1745907328369,0.4318478,94553.0,94550.0,0.208]
[1745907328571,0.211452,94551.0,94550.0,0.208]
[1745907328770,0.4318487,94553.0,94550.0,0.208]
[1745907329070,0.2114504,94552.0,94550.0,0.208]
[1745907329471,0.2118,94551.0,94550.0,0.208]
[1745907329775,0.2148,94551.0,94550.0,0.208]
[1745907330177,0.426252,94551.0,94550.0,0.208]
[1745907330684,0.2148,94551.0,94550.0,0.208]
[1745907331476,0.2118,94551.0,94550.0,0.208]
[1745907332177,0.2148,94551.0,94550.0,0.208]
[1745907332377,0.2178,94551.0,94550.0,0.208]
[1745907344187,0.2178,94551.0,94550.0,0.4194542]
[1745907344577,0.2178,94551.0,94550.0,0.208]
[1745907345398,0.2178,94551.0,94550.0,0.4194542]
[1745907369004,0.2178,94551.0,94550.0,0.208]
[1745907369504,0.2178,94551.0,94550.0,0.4194542]
[1745907374096,0.2178,94551.0,94550.0,0.5394542]
[1745907377707,0.1118,94551.0,94550.0,0.9002542]
[1745907377905,0.06456,94567.0,94565.0,0.2114207]
[1745907378103,0.1007,94576.0,94565.0,0.3314207]
[1745907378307,0.06456,94572.0,94565.0,0.3314207]
[1745907378613,0.1078,94571.0,94565.0,0.3314207]
[1745907379007,0.1078,94571.0,94565.0,0.6519207]
[1745907379310,0.17236,94571.0,94565.0,0.6519207]
[1745907379613,0.02541558,94566.0,94565.0,0.6519207]
[1745907379816,0.02841558,94566.0,94565.0,0.6389207]
[1745907380612,0.02941558,94566.0,94565.0,0.6389207]
[1745907390309,0.02941558,94566.0,94565.0,0.65544965]
[1745907390712,0.02941558,94566.0,94565.0,0.6389207]
[1745907391319,0.02941558,94566.0,94565.0,0.65544987]
[1745907392413,0.02941558,94566.0,94565.0,0.65544943]
[1745907394117,0.02941558,94566.0,94565.0,0.65544951]
[1745907395621,0.1985,94574.0,94573.0,0.2114028]
[1745907395820,0.01265,94575.0,94574.0,0.2114005]
[1745907396019,0.03716003,94575.0,94574.0,0.33192931]
[1745907396327,0.2113481,94598.0,94589.0,0.211367]
[1745907396513,0.06452,94592.0,94589.0,0.22368906]
[1745907396715,0.02559995,94590.0,94589.0,0.01232206]
[1745907397225,0.02559995,94590.0,94589.0,0.11422206]
[1745907397416,0.02559995,94590.0,94589.0,0.13074848]
[1745907397724,0.23749995,94590.0,94589.0,0.13074848]
[1745907398223,0.23749995,94590.0,94589.0,0.24714848]
[1745907398524,0.23749995,94590.0,94589.0,0.26214848]
[1745907399222,0.23749995,94590.0,94589.0,0.47351548]
[1745907401020,0.33449995,94590.0,94589.0,0.47351548]
[1745907401322,0.33449995,94590.0,94589.0,0.45698906]
[1745907402117,0.22959995,94590.0,94589.0,0.45698906]
[1745907402427,0.1,94600.0,94596.0,0.0528375]
[1745907402626,0.06594444,94620.0,94596.0,0.0528375]
[1745907402627,0.06452,94607.0,94606.0,0.211329]
[1745907403227,0.06452,94607.0,94606.0,0.34738093]
[1745907403425,0.08888444,94607.0,94606.0,0.3639042]
[1745907404021,0.08888444,94607.0,94606.0,0.36372786]
[1745907404423,0.08888444,94607.0,94606.0,0.44440459]
[1745907404725,0.08888444,94607.0,94606.0,0.54540459]
[1745907405331,0.08888444,94607.0,94606.0,0.56192722]
[1745907405528,0.08888444,94607.0,94606.0,0.25357456]
[1745907405827,0.08888444,94607.0,94606.0,0.36390356]
[1745907406228,0.19628444,94607.0,94606.0,0.47060356]
[1745907406529,0.19628444,94607.0,94606.0,0.45408093]
[1745907407128,0.19628444,94607.0,94606.0,0.24275193]
[1745907407429,0.13176444,94607.0,94606.0,0.2267]
[1745907407822,0.13176444,94607.0,94606.0,0.438029]
[1745907408223,0.02436444,94607.0,94606.0,0.438029]
[1745907408525,0.01265,94616.0,94615.0,0.2113089]
[1745907408719,0.01265,94616.0,94615.0,0.5721089]
[1745907408925,0.1032,94617.0,94616.0,0.2113067]
[1745907409122,0.02459594,94617.0,94616.0,0.64279678]
[1745907409323,0.1032,94624.0,94623.0,0.2112911]
[1745907409524,0.1032,94624.0,94623.0,0.22368118]
[1745907409727,0.01365,94626.0,94624.0,0.2112888]
[1745907409927,0.01365,94626.0,94624.0,0.43297888]
[1745907410130,0.02526621,94625.0,94624.0,0.56900763]
[1745907410336,0.17164,94643.0,94624.0,0.71851883]
[1745907410530,0.1054,94639.0,94637.0,0.2112582]
[1745907410739,0.1054,94639.0,94638.0,0.11822875]
[1745907410932,0.1054,94639.0,94638.0,0.13061719]
[1745907411236,0.1054,94639.0,94638.0,0.25061719]
[1745907411538,0.1054,94639.0,94638.0,0.23458846]
[1745907411727,0.3166554,94639.0,94638.0,0.13238867]
[1745907411924,0.1054,94639.0,94638.0,0.03238919]
[1745907412625,0.1054,94639.0,94638.0,0.03238918]
[1745907413131,0.1054,94639.0,94638.0,0.03238914]
[1745907414430,0.3166554,94639.0,94638.0,0.03238914]
[1745907414630,0.1054,94639.0,94638.0,0.03238914]
[1745907415131,0.46106401,94639.0,94624.0,0.33278058]
[1745907415330,0.3608,94627.0,94625.0,0.01238921]
[1745907415633,0.3608,94627.0,94624.0,0.1041]
[1745907415634,0.1959,94626.0,94624.0,0.1041]
[1745907416221,0.1959,94626.0,94624.0,0.2241]
[1745907416922,0.4071846,94626.0,94624.0,0.2261]
[1745907417430,0.4071846,94626.0,94624.0,0.2271]
[1745907418031,0.1959,94626.0,94624.0,0.2271]
[1745907418633,0.1959,94626.0,94624.0,0.2261]
[1745907418832,0.1959,94626.0,94624.0,0.2241]
[1745907419034,0.1959,94626.0,94624.0,0.2261]
[1745907419729,0.2112866,94625.0,94624.0,0.122]
[1745907419929,0.21,94625.0,94624.0,0.122]
[1745907420633,0.21,94625.0,94624.0,0.2218]
[1745907421032,0.21,94625.0,94624.0,0.122]
[1745907421033,0.4212866,94625.0,94624.0,0.122]
[1745907421235,0.4934866,94625.0,94624.0,0.122]
[1745907421836,0.5991666,94625.0,94624.0,0.05151276]
[1745907422635,0.0722,94625.0,94624.0,0.04951276]
[1745907422833,0.3608,94627.0,94624.0,0.04951276]
[1745907423026,0.1708,94626.0,94625.0,0.0988]
[1745907424127,0.1708,94626.0,94625.0,0.2188]
[1745907424335,0.0722,94626.0,94625.0,0.2188]
[1745907424733,0.2834844,94626.0,94625.0,0.2188]
[1745907424938,0.3820844,94626.0,94625.0,0.2188]
[1745907425136,0.1708,94626.0,94625.0,0.2198]
[1745907425633,0.3608,94627.0,94626.0,0.2112844]
[1745907425836,0.3608,94627.0,94626.0,0.4174844]
[1745907426138,0.3608,94627.0,94626.0,0.5374844]
[1745907426724,0.3608,94627.0,94626.0,0.5404844]
[1745907427135,0.3608,94627.0,94626.0,0.55387355]
[1745907427951,0.0722,94637.0,94636.0,0.211262]
[1745907428140,0.0722,94637.0,94636.0,1.00352541]
[1745907429038,0.0722,94637.0,94636.0,1.00452541]
[1745907429232,0.0722,94637.0,94636.0,1.12452541]
[1745907431839,0.103,94643.0,94639.0,0.2112542]
[1745907432047,0.07216,94642.0,94640.0,0.21326341]
[1745907432245,0.07216,94642.0,94641.0,0.01236341]
[1745907432647,0.17056,94642.0,94641.0,0.11546341]
[1745907433141,0.3818087,94642.0,94641.0,0.23546341]
[1745907433547,0.0984,94642.0,94641.0,0.23546341]
[1745907433843,0.17056,94642.0,94641.0,0.23546341]
[1745907434746,0.07216,94642.0,94641.0,0.23546341]
[1745907435460,0.07216,94642.0,94641.0,0.44671431]
[1745907435649,0.02371646,94644.0,94643.0,0.2112464]
[1745907435947,0.07316,94656.0,94655.0,0.2112196]
[1745907436150,0.07216,94671.0,94655.0,1.27302093]
[1745907436343,0.07216,94671.0,94670.0,0.3608]
[1745907436546,0.088,94671.0,94670.0,0.58430713]
[1745907436852,0.11225396,94671.0,94670.0,0.58430713]
[1745907437046,0.088,94671.0,94670.0,0.37312093]
[1745907437348,0.2833439,94671.0,94670.0,0.49312093]
[1745907438048,0.30780156,94671.0,94670.0,0.49312093]
[1745907438247,0.51250156,94671.0,94670.0,0.49312093]
[1745907438649,0.30131766,94671.0,94670.0,0.49312093]
[1745907439344,0.30131766,94671.0,94670.0,0.49315387]
[1745907440145,0.51250156,94671.0,94670.0,0.49315387]
[1745907441343,0.51250156,94671.0,94670.0,0.13235387]
[1745907441749,0.51250156,94671.0,94651.0,0.00158497]
[1745907441750,0.0527968,94670.0,94655.0,0.66250464]
[1745907441948,0.2112058,94662.0,94656.0,0.1171233]
[1745907442151,0.4876675,94661.0,94656.0,0.1048]
[1745907442338,0.27646,94661.0,94656.0,0.1048]
[1745907442648,0.4876669,94661.0,94656.0,0.1048]
[1745907442851,0.2112088,94660.0,94656.0,0.1048]
[1745907443150,0.07216,94659.0,94656.0,0.2248]
[1745907443349,0.27646,94659.0,94656.0,0.2248]
[1745907443650,0.27646,94659.0,94656.0,0.4360174]
[1745907443948,0.27646,94659.0,94657.0,0.1028]
[1745907444148,0.27646,94659.0,94657.0,0.2228]
[1745907444343,0.27646,94659.0,94658.0,0.1045]
[1745907444545,0.4876707,94659.0,94658.0,0.1045]
[1745907444750,0.8484707,94659.0,94658.0,0.1045]
[1745907445252,0.8484707,94659.0,94658.0,0.2245]
[1745907445758,0.9541147,94659.0,94658.0,0.12]
[1745907446255,0.9541147,94659.0,94658.0,0.0516061]
[1745907448555,0.8484707,94659.0,94658.0,0.0516061]
[1745907448742,0.4876707,94659.0,94658.0,0.0516061]
[1745907450256,0.17866,94659.0,94658.0,0.0516061]
[1745907451057,0.3898707,94659.0,94658.0,0.1580061]
[1745907452158,0.17866,94659.0,94658.0,0.1580061]
[1745907453454,0.3898707,94659.0,94658.0,0.1580061]
[1745907453655,0.3177107,94659.0,94658.0,0.1580061]
[1745907453858,0.3924707,94659.0,94658.0,0.1580061]
[1745907454049,0.18126,94659.0,94658.0,0.1580061]
[1745907454653,0.18126,94659.0,94658.0,0.17008032]
[1745907455148,0.3177107,94659.0,94658.0,0.17008032]
[1745907455348,0.3924707,94659.0,94658.0,0.17008032]
[1745907455759,0.3924707,94659.0,94658.0,0.1580061]
[1745907456962,0.4958707,94659.0,94658.0,0.1580061]
[1745907458351,0.6015147,94659.0,94658.0,0.10731611]
[1745907458651,0.2112308,94650.0,94649.0,0.3608]
[1745907459154,0.2112308,94650.0,94649.0,0.12]
[1745907459755,0.4143308,94650.0,94649.0,0.12]
[1745907460060,0.4143308,94650.0,94649.0,0.121]
[1745907460653,0.4143308,94650.0,94649.0,0.12]
[1745907460852,0.4143308,94650.0,94649.0,0.121]
[1745907462147,0.4143308,94650.0,94649.0,0.021]
[1745907462963,0.4143308,94650.0,94649.0,0.02]
[1745907463151,0.4143308,94650.0,94649.0,0.021]
[1745907475067,0.4891308,94650.0,94649.0,0.021]
[1745907476464,0.4891308,94650.0,94649.0,0.02]
[1745907476663,0.4891308,94650.0,94649.0,0.021]
[1745907477165,0.0748,94650.0,94649.0,0.021]
[1745907477365,0.5878582,94656.0,94649.0,0.021]
[1745907477665,0.2112258,94653.0,94650.0,0.2975]
[1745907477861,0.233505,94655.0,94650.0,0.2975]
[1745907478062,0.233505,94655.0,94650.0,0.4175]
[1745907478365,0.0748,94654.0,94650.0,0.4175]
[1745907478763,0.0748,94653.0,94652.0,0.2112263]
[1745907478959,0.0748,94653.0,94652.0,0.4138263]
[1745907479263,0.0748,94653.0,94652.0,0.5338263]
[1745907480158,0.0748,94653.0,94652.0,0.3226]
[1745907480477,0.0748,94653.0,94652.0,0.3236]
[1745907481064,0.0748,94653.0,94652.0,0.3226]
[1745907481369,0.0748,94653.0,94652.0,0.3236]
[1745907482656,0.0748,94653.0,94652.0,0.3226]
[1745907482964,0.0748,94653.0,94652.0,0.3236]
[1745907484266,0.0748,94653.0,94652.0,0.5348263]
[1745907484671,0.01584,94659.0,94658.0,0.2112129]
[1745907484868,0.1021,94670.0,94658.0,0.3608]
[1745907485171,0.074,94669.0,94668.0,0.2111906]
[1745907485366,0.074,94669.0,94668.0,0.5140906]
[1745907485569,0.074,94669.0,94668.0,0.3029]
[1745907485768,0.074,94669.0,94668.0,0.31528492]
[1745907486066,0.074,94669.0,94668.0,0.64647552]
[1745907486370,0.074,94669.0,94668.0,0.66250259]
[1745907486669,0.074,94669.0,94668.0,0.66250219]
[1745907487572,0.074,94669.0,94668.0,0.45131138]
[1745907489066,0.074,94669.0,94668.0,0.66250198]
[1745907489261,0.074,94669.0,94668.0,0.66250204]
[1745907489465,0.074,94669.0,94668.0,0.64647497]
[1745907491170,0.074,94669.0,94668.0,0.64647482]
[1745907491673,0.04350595,94671.0,94668.0,0.43528422]
[1745907491868,0.074,94671.0,94670.0,0.2111862]
[1745907492065,0.074,94671.0,94670.0,0.34357042]
[1745907492370,0.04318385,94671.0,94670.0,0.34357042]
[1745907492570,0.074,94674.0,94673.0,0.2111795]
[1745907492775,0.074,94674.0,94673.0,0.22356372]
[1745907493170,0.11732348,94674.0,94673.0,0.34356372]
[1745907493471,0.11732348,94674.0,94673.0,0.35954223]
[1745907493667,0.11732348,94674.0,94673.0,0.14836273]
[1745907494467,0.32432348,94674.0,94673.0,0.14836273]
[1745907494668,0.22052348,94674.0,94673.0,0.14836273]
[1745907495966,0.11732348,94674.0,94673.0,0.14836273]
[1745907496168,0.11732348,94674.0,94673.0,0.35954223]
[1745907496874,0.04332348,94674.0,94673.0,0.35954223]
[1745907497172,0.074,94676.0,94675.0,0.211175]
[1745907497375,0.074,94676.0,94675.0,0.37318422]
[1745907497574,0.11707068,94676.0,94675.0,0.37318422]
[1745907497769,0.11707068,94676.0,94675.0,0.46938422]
[1745907497975,0.42727068,94676.0,94675.0,0.48536273]
[1745907498178,0.42727068,94676.0,94675.0,0.60536273]
[1745907498370,0.42727068,94676.0,94675.0,0.58938422]
[1745907498874,0.32647068,94676.0,94675.0,0.58938422]
[1745907499175,0.32647068,94676.0,94675.0,0.69218422]
[1745907500879,0.11707068,94676.0,94675.0,0.69218422]
[1745907501276,0.11707068,94676.0,94675.0,0.33138422]
[1745907502374,0.11707068,94676.0,94675.0,0.33138366]
[1745907503888,0.11707068,94676.0,94675.0,0.22858366]
[1745907506486,0.11707068,94676.0,94675.0,0.24442144]
[1745907506683,0.11707068,94676.0,94675.0,0.34172144]
[1745907507385,0.11707068,94676.0,94675.0,0.32588366]
[1745907507882,0.11707068,94676.0,94675.0,0.53705866]
[1745907508081,0.04307068,94676.0,94675.0,0.53705866]
[1745907508382,0.078,94677.0,94676.0,0.2111728]
[1745907508582,0.078,94677.0,94676.0,0.43175646]
[1745907508986,0.12082969,94677.0,94676.0,0.22058366]
[1745907509178,0.078,94677.0,94676.0,0.55175646]
[1745907509378,0.078,94677.0,94676.0,0.55175546]
[1745907510875,0.04262833,94677.0,94676.0,0.55175546]
[1745907511082,0.01584,94685.0,94678.0,0.0527917]
[1745907511376,0.001,94686.0,94684.0,0.3608]
[1745907511581,0.001,94686.0,94685.0,0.11368266]
[1745907511781,0.079,94686.0,94685.0,0.11368266]
[1745907511983,0.33463755,94686.0,94685.0,0.01238266]
[1745907512276,0.33463755,94686.0,94685.0,0.13238266]
[1745907512475,0.33463755,94686.0,94685.0,0.12]
[1745907512988,0.33463755,94686.0,94685.0,0.145]
[1745907513387,0.33463755,94686.0,94685.0,0.08138002]
[1745907513780,0.33463755,94686.0,94685.0,0.06146003]
[1745907514690,0.33463755,94686.0,94685.0,0.01726003]
[1745907515094,0.33463755,94686.0,94685.0,0.13726003]
[1745907515294,0.33463755,94686.0,94685.0,0.12000001]
[1745907525387,0.33463755,94686.0,94657.0,0.33270061]
[1745907525388,0.2112075,94661.0,94657.0,0.33270061]
[1745907525595,0.078,94661.0,94658.0,0.1963]
[1745907526093,0.078,94661.0,94658.0,0.3163]
[1745907527297,0.08,94661.0,94658.0,0.3163]
[1745907527603,0.08,94661.0,94658.0,0.12]
[1745907527604,0.2112107,94659.0,94658.0,0.12]
[1745907528798,0.2132107,94659.0,94658.0,0.12]
[1745907529194,0.2162107,94659.0,94658.0,0.12]
[1745907530190,0.3163107,94659.0,94658.0,0.12]
[1745907535699,0.1051,94659.0,94658.0,0.12]
[1745907536600,0.3163107,94659.0,94658.0,0.12]
[1745907536802,0.4212107,94659.0,94658.0,0.12]
[1745907537703,0.4979307,94659.0,94658.0,0.12]
[1745907538904,0.18182,94659.0,94658.0,0.12]
[1745907539101,0.005,94659.0,94658.0,0.12]
[1745907539696,0.08172,94659.0,94658.0,0.12]
[1745907540808,0.005,94659.0,94658.0,0.3312129]
[1745907541198,0.01584,94665.0,94664.0,0.2111996]
[1745907541405,0.09256,94665.0,94664.0,0.5719996]
[1745907541602,0.07672,94665.0,94664.0,0.5719996]
[1745907541803,0.1062,94678.0,94666.0,0.2111936]
[1745907541997,0.1062,94678.0,94668.0,0.2111904]
[1745907542204,0.1062,94678.0,94669.0,0.2068]
[1745907542506,0.07672,94677.0,94669.0,0.2068]
[1745907543097,0.07672,94677.0,94669.0,0.3268]
[1745907543411,0.07672,94676.0,94669.0,0.3268]
[1745907543603,0.07672,94676.0,94672.0,0.2111808]
[1745907543912,0.07672,94676.0,94673.0,0.2068]
[1745907544115,0.07672,94676.0,94673.0,0.3268]
[1745907544304,0.07672,94676.0,94674.0,0.1039]
[1745907544501,0.08072,94676.0,94674.0,0.1039]
[1745907544807,0.004,94676.0,94675.0,0.2127]
[1745907545204,0.004,94676.0,94675.0,0.3327]
[1745907545405,0.08072,94676.0,94675.0,0.3327]
[1745907545609,0.08572,94676.0,94675.0,0.3327]
[1745907545811,0.2968928,94676.0,94675.0,0.02562439]
[1745907546011,0.2968928,94676.0,94647.0,0.00158488]
[1745907546012,0.1345132,94676.0,94666.0,0.03788715]
[1745907546213,0.2111929,94667.0,94666.0,0.03788715]
[1745907546414,0.2111779,94674.0,94666.0,0.03788715]
[1745907546613,0.211178,94674.0,94666.0,0.03788715]
[1745907546815,0.3091795,94673.0,94666.0,0.03788715]
[1745907547010,0.2111859,94671.0,94666.0,0.03788715]
[1745907547312,0.098,94670.0,94667.0,0.1047]
[1745907547501,0.3091869,94670.0,94667.0,0.1047]
[1745907548210,0.3091869,94670.0,94667.0,0.2247]
[1745907548615,0.102,94670.0,94667.0,0.2247]
[1745907549010,0.07672,94669.0,94667.0,0.2247]
[1745907549212,0.07672,94669.0,94668.0,0.0979]
[1745907549613,0.07672,94669.0,94668.0,0.2036]
[1745907550213,0.08472,94670.0,94669.0,0.2111884]
[1745907550416,0.08472,94670.0,94669.0,0.4147884]
[1745907551007,0.08072,94670.0,94669.0,0.4147884]
[1745907551208,0.08072,94670.0,94669.0,0.5347884]
[1745907551606,0.009,94670.0,94669.0,0.5347884]
[1745907551809,0.08572,94670.0,94669.0,0.5347884]
[1745907552006,0.08172,94670.0,94669.0,0.5347884]
[1745907552815,0.08572,94670.0,94669.0,0.5347884]
[1745907564422,0.01584,94674.0,94673.0,0.2111795]
[1745907564916,0.07604,94677.0,94676.0,0.2111728]
[1745907565220,0.07604,94677.0,94676.0,0.6919728]
[1745907565922,0.07604,94677.0,94676.0,1.0121728]
[1745907566422,0.111,94680.0,94679.0,0.2111661]
[1745907567122,0.111,94680.0,94679.0,0.3311661]
[1745907567421,0.111,94680.0,94679.0,0.4384661]
[1745907567822,0.01584,94684.0,94683.0,0.2111572]
[1745907568213,0.12152705,94686.0,94685.0,0.2111527]
[1745907568422,0.12152705,94686.0,94685.0,0.5719527]
[1745907568720,0.04548705,94686.0,94685.0,0.5719527]
[1745907569122,0.04548705,94686.0,94685.0,0.7816527]
[1745907569320,0.04548705,94686.0,94685.0,0.9016527]
[1745907569510,0.04548705,94686.0,94685.0,0.9136527]
[1745907570722,0.05048705,94686.0,94685.0,0.9136527]
[1745907571026,0.05348705,94686.0,94685.0,0.9016527]
[1745907571718,0.05348705,94686.0,94685.0,1.0072647]
[1745907571925,0.05348705,94686.0,94685.0,1.21663661]
[1745907572120,0.01584,94690.0,94689.0,0.2111438]
[1745907572328,0.1041,94692.0,94691.0,0.2111393]
[1745907572916,0.14114809,94692.0,94691.0,0.2111393]
[1745907573116,0.14114809,94692.0,94691.0,0.3311393]
[1745907573616,0.14114809,94692.0,94691.0,0.54051121]
[1745907574226,0.14414809,94692.0,94691.0,0.54051121]
[1745907575325,0.14414809,94692.0,94691.0,0.64611921]
[1745907575715,0.14414809,94692.0,94691.0,0.65385732]
[1745907578927,0.14414809,94692.0,94691.0,0.86985732]
[1745907579226,0.14414809,94692.0,94691.0,0.76424932]
[1745907579430,0.14414809,94692.0,94691.0,0.54824932]
[1745907582423,0.14414809,94692.0,94691.0,0.65385732]
[1745907583229,0.1071,94692.0,94691.0,0.65385732]
[1745907584129,0.002,94692.0,94691.0,0.65385732]
[1745907584534,0.1074,94694.0,94691.0,0.65385732]
[1745907584535,0.1074,94694.0,94693.0,0.2111349]
[1745907584728,0.0015,94695.0,94694.0,0.2111327]
[1745907585031,0.0015,94695.0,94694.0,0.42050461]
[1745907585629,0.1089,94695.0,94694.0,0.62880461]
[1745907586125,0.1089,94695.0,94694.0,0.74880461]
[1745907586726,0.01583,94699.0,94698.0,0.2111237]
[1745907586925,0.01583,94699.0,94698.0,0.5719237]
[1745907587132,0.1,94700.0,94699.0,0.2111215]
[1745907587731,0.1,94700.0,94699.0,0.4216215]
[1745907587936,0.1,94700.0,94699.0,0.5268215]
[1745907588126,0.13623994,94700.0,94699.0,0.6468215]
[1745907588322,0.13623994,94700.0,94699.0,0.4389215]
[1745907589134,0.13623994,94700.0,94699.0,0.64829341]
[1745907589436,0.13723994,94700.0,94699.0,0.64829341]
[1745907589630,0.13723994,94700.0,94699.0,0.75879341]
[1745907590122,0.13723994,94700.0,94699.0,0.86438941]
[1745907591132,0.101,94700.0,94699.0,0.86438941]
[1745907591341,0.01583,94704.0,94703.0,0.2111126]
[1745907591531,0.001,94716.0,94715.0,0.2110858]
[1745907591729,0.001,94716.0,94715.0,0.5718858]
[1745907592227,0.001,94716.0,94715.0,0.6918858]
[1745907593334,0.002,94716.0,94715.0,0.6918858]
[1745907593937,0.03897689,94716.0,94715.0,0.6918858]
[1745907594240,0.002,94716.0,94715.0,0.6918858]
[1745907595539,0.0383627,94716.0,94715.0,0.6918858]
[1745907595930,0.0383627,94716.0,94715.0,0.4808]
[1745907596133,0.0383627,94716.0,94715.0,0.6918858]
[1745907596841,0.0383627,94716.0,94715.0,0.4808]
[1745907597344,0.1129227,94716.0,94715.0,0.4808]
[1745907597540,0.1129227,94716.0,94715.0,0.6918858]
[1745907598038,0.1129227,94716.0,94715.0,0.4808]
[1745907598242,0.1129227,94716.0,94715.0,0.6918858]
[1745907599047,0.1129227,94716.0,94715.0,0.4808]
[1745907599235,0.2222227,94716.0,94715.0,0.4808]
[1745907600334,0.5412063,94716.0,94715.0,0.4808]
[1745907601136,0.3301227,94716.0,94715.0,0.4808]
[1745907603745,0.3301227,94716.0,94715.0,0.6918858]
[1745907604046,0.1462627,94716.0,94715.0,0.6918858]
[1745907604635,0.1462627,94716.0,94715.0,1.0198858]
[1745907605349,0.1452627,94716.0,94715.0,1.0198858]
[1745907606745,0.1089,94716.0,94715.0,1.22925771]
[1745907613440,0.001,94716.0,94715.0,1.22925771]
[1745907614656,0.00625,94725.0,94715.0,1.22925771]
[1745907614657,0.0527527,94749.0,94720.0,0.0999082]
[1745907614841,0.2101,94745.0,94740.0,0.7216]
[1745907615147,0.2101,94745.0,94744.0,0.2110212]
[1745907615534,0.2101,94745.0,94744.0,0.22332552]